bitfinex-derivatives/quotes_ETHF0:USTF0_20250828
["timestamp","ask_amount","ask_price","bid_price","bid_amount"]
[1756406715439,4.1743,4493.2,4493.1,1.1491]
[1756406715836,4.36393449,4493.2,4493.1,1.1491]
[1756406716343,3.2078,4493.2,4493.1,1.1491]
[1756406716731,3.39749725,4493.2,4493.1,1.1491]
[1756406717940,3.2078,4493.2,4493.1,1.1491]
[1756406720239,2.76419468,4493.7,4493.6,0.3646]
[1756406720442,2.76419468,4493.7,4493.6,1.54863]
[1756406720649,3.2078,4494.2,4494.1,0.40049]
[1756406720835,3.2078,4494.2,4494.1,1.54859]
[1756406725042,3.2078,4494.8,4494.7,0.40044]
[1756406725347,4.36423509,4494.8,4494.7,1.54854]
[1756406725844,4.36423509,4494.8,4494.1,0.40048]
[1756406725845,0.3668,4494.3,4494.1,0.40048]
[1756406726047,0.9665,4493.7,4493.6,0.95203]
[1756406726242,0.9665,4493.7,4493.6,0.5515]
[1756406726440,0.9665,4493.6,4493.5,0.3646]
[1756406726640,0.9665,4493.6,4493.5,0.232]
[1756406727251,1.15659825,4493.6,4493.5,0.232]
[1756406727550,1.00025,4493.4,4493.3,32.059]
[1756406727750,1.00025,4493.4,4493.3,32.291]
[1756406728045,0.5997,4493.4,4493.3,32.291]
[1756406729351,0.78984887,4493.4,4493.3,32.291]
[1756406730046,1.36709,4493.0,4492.9,0.3646]
[1756406730241,0.9665,4492.4,4492.3,1.31675]
[1756406730446,0.9665,4492.4,4492.3,1.54875]
[1756406731348,0.9665,4492.4,4492.3,0.232]
[1756406731747,1.15674265,4492.4,4492.3,0.232]
[1756406732247,0.3668,4492.0,4491.9,32.053]
[1756406732549,4.36457987,4492.0,4491.9,32.285]
[1756406733754,4.36457987,4492.0,4491.9,0.232]
[1756406734951,8.36457987,4492.0,4491.9,0.232]
[1756406735152,0.3668,4490.7,4490.6,1.3169]
[1756406735351,0.40075,4491.2,4490.7,0.40079]
[1756406735553,0.5645225,4491.1,4491.0,0.3646]
[1756406735749,0.3668,4491.1,4491.0,1.1481]
[1756406735949,0.9315,4491.1,4491.0,0.5966]
[1756406736150,1.1292321,4491.1,4491.0,0.5966]
[1756406736350,1.1292321,4491.1,4491.0,0.232]
[1756406738755,0.961,4489.9,4489.8,0.9974]
[1756406738958,0.961,4489.9,4489.8,0.232]
[1756406739159,1.15876101,4489.9,4489.8,0.232]
[1756406739657,1.15868686,4489.9,4489.8,0.232]
[1756406740055,1.15869535,4489.9,4489.8,0.232]
[1756406740450,1.15869535,4489.9,4489.8,0.6088]
[1756406740756,1.15869535,4489.9,4489.8,0.232]
[1756406742257,1.15869535,4489.9,4489.8,0.8526]
[1756406742555,1.15869535,4489.9,4489.8,0.232]
[1756406743756,0.40091,4489.4,4489.1,0.63193]
[1756406743960,0.961,4489.2,4489.1,0.231]
[1756406744354,0.961,4489.2,4489.1,0.6078]
[1756406744759,0.961,4489.2,4489.1,0.231]
[1756406744956,0.961,4489.2,4489.1,0.63193]
[1756406745352,0.961,4489.2,4489.1,0.6078]
[1756406746259,0.961,4489.2,4488.5,1.00246]
[1756406746260,0.3963,4488.6,4487.7,0.6206]
[1756406746562,0.3963,4488.6,4487.1,32.071]
[1756406746563,4.1688,4488.2,4488.1,0.9974]
[1756406747158,0.961,4488.0,4487.9,0.231]
[1756406747764,0.961,4488.0,4487.9,1.2284]
[1756406748364,0.961,4488.0,4487.9,0.231]
[1756406749462,0.5647,4488.0,4487.9,1.2284]
[1756406749663,0.961,4488.1,4488.0,0.3768]
[1756406749967,0.961,4488.1,4488.0,0.6088]
[1756406750264,0.961,4488.1,4488.0,0.232]
[1756406751268,0.961,4487.9,4487.8,0.9974]
[1756406751566,0.961,4487.9,4487.8,1.2294]
[1756406751759,0.961,4487.9,4487.8,0.232]
[1756406754265,1.15763621,4487.9,4487.8,0.232]
[1756406754470,0.961,4487.9,4487.8,1.2294]
[1756406754667,0.961,4487.9,4487.8,0.232]
[1756406755068,1.15771985,4487.9,4487.8,0.232]
[1756406755465,1.15771985,4487.9,4487.8,0.6088]
[1756406755666,1.15771985,4487.9,4487.8,1.2294]
[1756406755966,0.961,4487.9,4487.8,1.2294]
[1756406757067,0.3963,4487.9,4487.8,1.2294]
[1756406757273,1.36204,4487.9,4487.8,1.2294]
[1756406757567,1.36204,4487.9,4487.1,32.071]
[1756406757568,0.4011,4487.3,4487.1,32.071]
[1756406757768,0.961,4487.2,4487.1,32.071]
[1756406757962,0.961,4487.2,4487.1,32.303]
[1756406758866,0.961,4487.2,4487.1,32.071]
[1756406759064,0.961,4487.2,4486.6,0.6206]
[1756406759065,1.36211,4487.1,4487.0,0.231]
[1756406759264,1.36211,4487.1,4486.5,0.231]
[1756406759265,1.00282,4487.0,4486.5,0.231]
[1756406759468,0.961,4486.6,4486.5,0.231]
[1756406759668,1.36216,4486.6,4486.5,0.231]
[1756406760271,0.3963,4485.7,4485.0,3.2078]
[1756406760468,0.961,4485.9,4485.8,0.3768]
[1756406760666,0.19740958,4485.9,4485.8,0.9974]
[1756406760869,3.2078,4486.0,4485.9,0.9974]
[1756406761072,0.5647,4486.8,4485.9,0.9974]
[1756406761073,3.2078,4486.7,4486.6,0.9974]
[1756406761274,4.36614687,4486.7,4486.6,1.2294]
[1756406761464,0.59364687,4486.7,4486.6,1.2294]
[1756406761867,0.19734687,4486.7,4486.6,1.2294]
[1756406762771,0.59364687,4486.7,4486.6,1.2294]
[1756406763074,1.15834687,4486.7,4486.6,1.2294]
[1756406763571,1.15834687,4486.7,4486.6,0.232]
[1756406763772,1.15834687,4486.7,4486.6,1.2294]
[1756406763971,1.15834687,4486.7,4486.6,0.8526]
[1756406764170,1.15834687,4486.7,4486.6,1.2294]
[1756406766270,0.19734687,4486.7,4486.6,1.2294]
[1756406766473,0.19734687,4486.7,4486.6,5.2294]
[1756406766970,3.2078,4487.8,4487.7,0.4141]
[1756406767167,4.42059278,4487.8,4487.7,1.1974]
[1756406767772,3.40649278,4487.8,4487.7,1.1974]
[1756406769477,4.42059278,4487.8,4487.7,1.1974]
[1756406770075,4.44776931,4487.8,4487.7,1.1974]
[1756406770676,3.84637658,4487.8,4487.7,1.1974]
[1756406770979,3.43397658,4487.8,4487.7,1.1974]
[1756406771169,3.23497653,4487.8,4487.7,1.1974]
[1756406772875,0.02717653,4487.8,4487.7,1.1974]
[1756406773071,3.2078,4488.8,4488.7,0.40097]
[1756406773278,3.2078,4488.8,4488.7,1.59837]
[1756406776679,4.2219,4488.8,4488.7,0.6451]
[1756406776878,4.2219,4488.8,4487.8,1.00263]
[1756406776879,0.6017,4488.1,4487.7,0.5523]
[1756406777082,1.0141,4487.8,4487.7,0.81516]
[1756406777283,1.0141,4487.8,4487.7,1.59846]
[1756406777482,3.8095,4488.2,4488.1,0.40102]
[1756406777682,4.2219,4488.2,4488.1,1.04612]
[1756406777883,4.2219,4488.2,4488.1,0.63202]
[1756406778387,4.2219,4488.2,4488.1,0.231]
[1756406779781,4.2219,4488.2,4488.1,1.1974]
[1756406780480,3.6202,4488.2,4488.1,1.1974]
[1756406780674,0.4124,4488.2,4488.1,1.1974]
[1756406781082,1.0141,4488.2,4488.1,1.1974]
[1756406782282,4.2219,4488.2,4487.5,3.2078]
[1756406782485,0.6017,4487.3,4487.1,0.40111]
[1756406782786,1.0141,4487.3,4487.2,0.231]
[1756406783981,0.4124,4487.0,4486.9,32.097]
[1756406784287,1.0141,4487.0,4486.9,32.328]
[1756406784986,1.0141,4487.0,4486.9,32.8803]
[1756406785582,1.0141,4487.0,4486.3,1.04325]
[1756406785583,0.40117,4486.5,4486.3,0.04029]
[1756406785793,0.4124,4486.4,4486.3,0.04029]
[1756406785980,0.4124,4486.4,4486.3,0.27129]
[1756406786181,1.0141,4486.4,4486.3,0.27129]
[1756406786984,0.4124,4485.8,4485.7,32.094]
[1756406787280,1.0141,4485.8,4485.7,32.325]
[1756406787485,1.41533,4485.8,4485.7,0.231]
[1756406791188,1.0141,4484.8,4484.3,0.5523]
[1756406791384,1.0141,4484.8,4484.7,0.9664]
[1756406792287,0.40134,4484.6,4484.4,0.231]
[1756406792488,1.0141,4484.8,4484.4,1.1974]
[1756406792489,1.0141,4484.5,4484.4,1.1974]
[1756406792789,0.4124,4484.5,4484.4,1.1974]
[1756406795089,1.0141,4484.5,4484.4,1.1974]
[1756406795489,0.4124,4484.5,4484.4,1.1974]
[1756406796093,0.9646,4484.5,4484.4,1.1974]
[1756406796393,3.60912,4484.8,4484.4,1.1974]
[1756406796394,0.3821,4484.6,4484.5,0.3685]
[1756406796587,0.3821,4484.6,4484.5,0.966]
[1756406796790,3.2078,4484.8,4484.7,0.3685]
[1756406797093,3.2078,4484.8,4484.7,1.197]
[1756406797295,3.5899,4484.8,4484.7,1.197]
[1756406797687,4.1421,4484.8,4484.7,1.197]
[1756406798381,3.5899,4484.8,4484.7,1.197]
[1756406799590,3.2078,4484.8,4484.7,1.197]
[1756406800195,4.1421,4484.8,4484.7,1.197]
[1756406801595,4.1421,4484.8,4484.7,1.59833]
[1756406801994,4.54342,4484.8,4484.7,0.231]
[1756406802292,0.9343,4484.3,4484.2,32.095]
[1756406802494,0.9343,4484.3,4484.2,32.72737]
[1756406803090,0.9343,4484.3,4484.2,32.326]
[1756406803496,0.9343,4484.3,4484.2,0.231]
[1756406804591,4.1421,4484.3,4484.2,0.231]
[1756406805794,4.1421,4484.3,4484.2,1.197]
[1756406807589,3.76,4484.8,4484.6,0.40133]
[1756406807793,4.1421,4484.8,4484.7,0.5985]
[1756406807996,4.1421,4484.8,4484.7,1.196]
[1756406808800,4.54342,4484.8,4484.7,1.196]
[1756406809601,4.54342,4484.8,4484.7,0.23]
[1756406810001,4.1421,4484.8,4484.7,0.23]
[1756406810193,4.54342,4484.8,4484.7,0.23]
[1756406811401,4.1421,4484.8,4484.7,0.63133]
[1756406812098,4.54342,4484.8,4484.7,0.63133]
[1756406812596,4.1421,4484.8,4484.7,0.63133]
[1756406812802,4.1421,4484.8,4484.7,1.59733]
[1756406813297,0.40134,4484.6,4484.5,0.40134]
[1756406813502,1.33564,4484.6,4484.5,0.40134]
[1756406813692,0.9343,4484.6,4484.5,0.40134]
[1756406813897,0.9343,4484.6,4484.5,1.36734]
[1756406814098,1.33565,4484.5,4484.4,0.23]
[1756406814400,0.9343,4484.5,4484.4,1.59735]
[1756406815002,1.33565,4484.5,4484.4,0.99985]
[1756406815199,1.33565,4484.5,4484.4,0.23]
[1756406815401,1.33565,4484.5,4484.4,0.63135]
[1756406816504,0.9343,4484.5,4484.4,0.99985]
[1756406816803,0.9343,4484.5,4484.4,1.59735]
[1756406818207,0.9343,4484.5,4484.4,1.87175673]
[1756406818403,0.9343,4484.5,4484.4,1.59735]
[1756406818404,0.3821,4484.5,4484.4,1.59735]
[1756406818904,0.3821,4484.5,4484.4,1.87175571]
[1756406819103,3.76,4484.8,4484.7,0.40133]
[1756406819300,3.2078,4485.3,4485.2,0.5975]
[1756406819499,3.2078,4485.3,4485.2,1.47049496]
[1756406820101,3.2078,4485.9,4485.8,0.966]
[1756406820405,3.2078,4485.9,4485.8,1.87172496]
[1756406820904,4.1421,4485.9,4485.8,1.04407501]
[1756406821104,4.1421,4485.9,4485.8,0.50434557]
[1756406821403,4.1421,4486.4,4486.3,0.76968]
[1756406821707,3.2078,4486.4,4486.3,1.59718]
[1756406822303,0.9343,4486.8,4486.7,0.76965]
[1756406822504,0.9343,4486.8,4486.7,1.36715]
[1756406822704,3.2078,4487.4,4486.8,0.5975]
[1756406823005,4.1421,4487.4,4487.3,0.966]
[1756406823207,0.9343,4486.9,4486.8,0.3685]
[1756406823406,4.1421,4486.9,4486.8,0.23]
[1756406823808,4.1421,4486.9,4486.1,32.116]
[1756406823809,0.9343,4486.2,4486.1,32.116]
[1756406824004,0.40117,4486.5,4485.1,1.97939571]
[1756406824005,0.3821,4485.2,4485.1,1.97939571]
[1756406824310,0.9343,4484.8,4484.7,0.966]
[1756406824509,3.76,4485.8,4485.1,0.5975]
[1756406824703,0.78335,4485.6,4485.5,0.3685]
[1756406824903,0.40126,4485.5,4485.2,0.231]
[1756406825207,4.1421,4485.3,4485.2,0.231]
[1756406825398,0.3821,4484.8,4484.7,0.99882]
[1756406825603,0.9343,4484.8,4484.7,1.59832]
[1756406825805,0.3821,4484.8,4484.7,1.59832]
[1756406826207,0.3821,4484.8,4484.7,1.197]
[1756406826612,3.7861,4485.3,4484.8,0.5809]
[1756406826902,3.2078,4485.3,4484.8,0.5809]
[1756406827203,0.3915,4484.9,4484.8,0.9646]
[1756406827411,0.9698,4484.9,4484.8,0.9646]
[1756406827906,0.9698,4484.9,4484.8,0.6147]
[1756406828107,0.9698,4484.9,4484.8,1.1956]
[1756406831009,3.2078,4485.3,4484.8,0.6147]
[1756406831199,3.7861,4485.3,4485.2,0.3837]
[1756406831399,4.1776,4485.3,4485.2,0.9646]
[1756406832403,4.1776,4485.3,4485.2,0.3837]
[1756406832610,3.7861,4485.3,4484.9,0.5809]
[1756406832809,3.7861,4485.3,4484.9,0.9646]
[1756406832810,0.9698,4485.0,4484.9,0.9646]
[1756406833310,3.5993,4485.3,4485.2,0.9646]
[1756406833709,4.1776,4485.3,4485.2,0.9646]
[1756406833905,3.2078,4485.8,4485.7,1.36584]
[1756406834109,3.2078,4485.8,4485.7,1.59684]
[1756406834305,3.2078,4486.4,4486.3,0.3837]
[1756406834506,3.2078,4486.4,4486.3,1.59678]
[1756406835013,0.3915,4486.7,4486.6,0.40115]
[1756406835309,4.1776,4486.7,4486.6,0.9646]
[1756406835909,0.9698,4486.7,4486.6,0.9646]
[1756406836807,0.3915,4486.7,4486.6,0.9646]
[1756406837911,0.9698,4486.7,4486.6,0.9646]
[1756406838613,0.3915,4486.7,4486.6,0.9646]
[1756406839811,0.5783,4486.9,4486.7,0.40115]
[1756406840019,0.5783,4486.9,4486.8,1.1946]
[1756406840203,0.9698,4486.9,4486.8,0.23]
[1756406841005,0.9698,4486.9,4486.8,1.1946]
[1756406841214,3.5993,4487.2,4487.1,1.36571]
[1756406841415,4.1776,4487.2,4487.1,1.36571]
[1756406841616,0.9698,4487.2,4487.1,0.9646]
[1756406841818,0.9698,4487.2,4486.8,0.23]
[1756406841819,0.9698,4487.2,4487.0,0.40112]
[1756406842021,0.3915,4487.2,4487.0,0.40112]
[1756406842316,0.3915,4487.2,4487.1,0.9646]
[1756406842511,0.7926,4487.2,4487.0,0.40112]
[1756406842709,0.9698,4487.1,4487.0,1.36572]
[1756406843514,0.9698,4487.6,4487.5,0.78477]
[1756406843820,0.9698,4487.6,4487.5,1.59567]
[1756406844007,0.3915,4487.6,4487.5,1.59567]
[1756406844320,3.2078,4487.7,4487.6,0.9646]
[1756406846313,3.2078,4488.2,4488.1,0.78472]
[1756406846509,3.2078,4488.2,4488.1,1.59562]
[1756406847612,3.5993,4488.2,4488.1,1.59562]
[1756406847812,4.1776,4488.2,4488.1,1.59562]
[1756406848522,4.1776,4488.2,4488.1,0.63102]
[1756406850318,4.1776,4488.2,4488.1,0.23]
[1756406852812,4.1776,4488.2,4488.1,1.1946]
[1756406853224,3.2078,4488.2,4488.1,1.59562]
[1756406853520,0.9698,4488.6,4488.5,1.36559]
[1756406854116,0.9698,4488.6,4488.5,1.1946]
[1756406854317,0.9698,4488.6,4488.5,1.59559]
[1756406854527,0.3915,4488.6,4488.5,1.59559]
[1756406854723,0.3915,4488.8,4488.7,0.9646]
[1756406855028,0.3915,4488.8,4488.7,1.36557]
[1756406855925,0.79246,4488.8,4488.7,0.9646]
[1756406856118,1.37116,4488.8,4488.7,0.9646]
[1756406856521,0.9518,4488.1,4488.0,1.30943]
[1756406856720,0.9518,4488.1,4488.0,1.53943]
[1756406856925,0.3731,4488.1,4488.0,0.23]
[1756406857516,0.9518,4488.1,4487.5,41.3387]
[1756406857719,0.9518,4487.2,4487.1,32.50911]
[1756406857931,0.9518,4487.2,4487.1,32.338]
[1756406858125,0.9518,4487.2,4487.1,32.73911]
[1756406858323,0.9518,4487.2,4487.1,33.27781]
[1756406858627,0.77418,4487.5,4487.4,0.3697]
[1756406858828,1.35288,4487.5,4487.4,0.9084]
[1756406859027,0.40109,4487.4,4487.1,32.338]
[1756406859326,0.9518,4487.2,4487.1,32.108]
[1756406859827,0.9518,4487.2,4487.1,32.338]
[1756406860524,0.9518,4487.2,4487.1,32.8767]
[1756406860725,0.3731,4487.2,4487.1,32.8767]
[1756406860938,1.35287,4487.6,4487.5,0.3697]
[1756406861135,0.9518,4487.6,4487.5,1.1384]
[1756406867038,0.3731,4487.6,4487.1,32.108]
[1756406867245,1.3529,4487.2,4487.1,32.108]
[1756406867438,1.3529,4487.2,4487.1,32.337]
[1756406867638,1.3529,4487.2,4487.1,32.108]
[1756406867840,8.5607,4487.2,4487.1,0.229]
[1756406868241,8.5607,4487.2,4486.0,0.3697]
[1756406868242,0.9518,4486.1,4486.0,0.3697]
[1756406868444,0.9518,4486.1,4486.0,0.23]
[1756406870139,0.9518,4486.1,4486.0,0.5997]
[1756406870339,0.9518,4486.6,4486.5,0.9084]
[1756406870545,3.2078,4486.8,4486.7,0.9084]
[1756406871138,0.9518,4487.5,4487.4,0.9084]
[1756406871338,0.9518,4487.5,4487.4,0.5997]
[1756406871546,0.9518,4487.5,4487.4,0.23]
[1756406871843,0.3731,4487.5,4487.4,1.1384]
[1756406872044,4.56065,4487.8,4487.7,0.3697]
[1756406872242,4.56065,4487.8,4487.7,0.9084]
[1756406872641,0.3731,4487.5,4487.4,0.5997]
[1756406872842,0.9518,4487.5,4487.4,0.5997]
[1756406873146,0.98235819,4487.5,4487.4,0.5997]
[1756406873647,0.98235819,4487.5,4487.4,1.1384]
[1756406873849,0.40365819,4487.5,4487.4,1.1384]
[1756406874144,0.03055819,4487.5,4487.4,1.1384]
[1756406875445,0.40365819,4487.5,4487.4,1.1384]
[1756406875644,0.40365819,4487.5,4486.8,3.2078]
[1756406875645,0.9518,4487.3,4487.2,0.4011]
[1756406875841,0.9518,4487.3,4487.2,1.1374]
[1756406876245,0.98235819,4487.3,4487.2,1.1374]
[1756406876951,0.98235819,4487.3,4487.1,0.40111]
[1756406877250,3.2078,4487.8,4487.2,0.19844181]
[1756406877550,0.3731,4487.3,4487.2,0.19844181]
[1756406877746,0.9518,4487.3,4487.2,0.19844181]
[1756406878351,4.1596,4487.3,4487.2,0.19844181]
[1756406879652,4.1596,4487.3,4487.2,1.10684181]
[1756406880049,4.1596,4487.3,4487.2,0.56814181]
[1756406880652,4.1596,4487.3,4487.2,0.19844181]
[1756406881252,3.2078,4487.8,4487.7,1.30946]
[1756406881458,3.2078,4488.3,4488.2,1.30941]
[1756406882455,4.1596,4488.3,4488.2,0.229]
[1756406882852,0.9518,4487.9,4487.8,0.40104]
[1756406883051,0.9518,4487.9,4487.8,0.63004]
[1756406883453,0.9518,4487.9,4487.8,0.229]
[1756406883953,0.9518,4487.3,4487.2,32.099]
[1756406884156,0.9518,4487.3,4487.2,32.328]
[1756406885251,0.9518,4487.3,4487.2,32.8667]
[1756406885654,4.1596,4487.7,4487.6,0.9084]
[1756406885850,0.3731,4487.7,4487.6,0.9084]
[1756406886056,3.2078,4488.2,4488.1,0.9478]
[1756406886254,3.2078,4488.2,4488.1,1.1768]
[1756406886652,0.9103,4487.4,4487.3,0.3881]
[1756406886858,0.9103,4487.4,4487.3,0.6171]
[1756406887052,0.9103,4487.4,4487.3,0.229]
[1756406887252,0.9103,4487.4,4487.3,1.1768]
[1756406887453,3.2078,4488.3,4488.2,0.5597]
[1756406887648,3.2078,4488.3,4488.2,1.1778]
[1756406888355,3.35617872,4488.3,4488.2,1.1778]
[1756406888959,4.26647872,4488.3,4487.7,41.3597]
[1756406889157,0.9103,4487.8,4487.7,0.9478]
[1756406889357,0.9103,4487.8,4487.7,1.1778]
[1756406889657,0.76835,4487.8,4487.3,4.16859]
[1756406889860,0.3673,4487.5,4487.4,0.63108]
[1756406890058,0.9103,4487.5,4487.4,1.01918]
[1756406890358,0.14837872,4487.5,4487.4,1.57888]
[1756406890958,0.14837872,4487.5,4487.4,1.57889]
[1756406892457,3.2078,4488.3,4488.2,0.9478]
[1756406892656,3.2078,4488.3,4488.2,1.1778]
[1756406894758,3.97605,4488.9,4488.8,0.3881]
[1756406894962,4.51905,4488.9,4488.8,0.6181]
[1756406895162,0.3673,4488.6,4488.5,0.96069]
[1756406895356,0.9103,4488.6,4488.5,1.1778]
[1756406896363,0.9103,4488.0,4487.9,3.5959]
[1756406896664,0.9103,4488.0,4487.9,0.23]
[1756406896865,0.543,4487.5,4487.4,0.9478]
[1756406897160,0.9103,4487.5,4487.4,1.1778]
[1756406897563,0.9103,4487.9,4487.8,0.3881]
[1756406897763,0.9103,4487.9,4487.8,1.1778]
[1756406897963,1.31134,4487.9,4487.8,1.1778]
[1756406898163,1.31134,4487.9,4487.8,0.6181]
[1756406898357,4.1518,4488.4,4487.9,0.40104]
[1756406898566,0.9103,4488.2,4488.1,0.3881]
[1756406898962,0.40102,4488.1,4487.8,0.63105]
[1756406899665,0.40103,4488.0,4487.8,0.23]
[1756406899863,0.40102,4488.2,4487.8,0.23]
[1756406900062,3.6088,4488.4,4487.9,0.40104]
[1756406900261,0.40101,4488.3,4488.0,0.40102]
[1756406900464,0.40102,4488.2,4487.9,0.40104]
[1756406900864,0.40102,4488.2,4487.8,0.23]
[1756406901366,0.40102,4488.2,4487.9,0.40104]
[1756406903267,0.40102,4488.1,4487.8,0.23]
[1756406903469,0.40101,4488.3,4487.9,0.40104]
[1756406903671,0.40102,4488.2,4487.9,0.40104]
[1756406904060,0.76832,4488.2,4488.1,0.3881]
[1756406904465,0.76832,4488.2,4488.1,0.9478]
[1756406904668,1.31132,4488.2,4488.1,0.9478]
[1756406905364,0.9103,4488.2,4488.1,1.34882]
[1756406905564,3.2078,4488.4,4488.3,1.34881]
[1756406905766,3.2078,4488.4,4488.3,1.57781]
[1756406906164,4.1181,4488.4,4488.3,1.57781]
[1756406906361,4.5191,4488.4,4488.3,0.229]
[1756406907364,0.543,4488.4,4488.3,1.57781]
[1756406907568,0.9103,4488.4,4488.3,1.57781]
[1756406907768,0.9103,4488.4,4488.3,1.1768]
[1756406908167,0.9103,4488.4,4488.3,0.6171]
[1756406908368,0.9103,4488.4,4488.3,1.01811]
[1756406908771,0.9103,4488.4,4488.3,1.57781]
[1756406909172,0.9103,4488.4,4488.3,1.81303499]
[1756406909970,3.7508,4488.9,4488.8,0.40096]
[1756406910274,3.2078,4488.9,4488.8,1.81298499]
[1756406911872,0.543,4489.6,4488.8,0.46422499]
[1756406912073,0.543,4489.6,4488.9,0.5597]
[1756406912273,0.3673,4489.3,4489.2,1.58394499]
[1756406912572,0.3673,4489.3,4489.2,1.81294499]
[1756406912775,0.9103,4489.3,4489.2,1.81294499]
[1756406914262,0.543,4489.6,4489.5,0.4009]
[1756406914468,0.543,4489.6,4489.5,1.3487]
[1756406914670,0.9103,4489.6,4489.5,1.3487]
[1756406915173,0.9103,4489.6,4489.5,1.58392499]
[1756406915371,0.3673,4489.6,4489.5,1.58392499]
[1756406915673,3.5751,4490.0,4489.9,0.3881]
[1756406915972,3.2078,4490.0,4489.5,0.23522499]
[1756406916173,0.9149,4489.6,4489.5,0.23522499]
[1756406916373,0.3765,4489.1,4489.0,0.40094]
[1756406916572,0.9149,4489.1,4489.0,0.62994]
[1756406917970,1.31586,4488.9,4488.6,0.40097]
[1756406918173,1.31586,4488.9,4488.7,0.229]
[1756406918576,1.31586,4488.9,4488.7,0.62997]
[1756406918771,0.9149,4488.9,4488.7,0.62997]
[1756406919470,0.9149,4488.9,4488.7,0.40097]
[1756406919675,0.9149,4488.9,4488.8,0.229]
[1756406919877,0.9149,4488.9,4488.8,1.1549]
[1756406920272,0.9149,4488.1,4488.0,4.53473]
[1756406920479,0.9149,4488.1,4488.0,4.76373]
[1756406920875,0.9149,4488.1,4488.0,3.8055]
[1756406921467,0.9149,4488.1,4488.0,4.3627]
[1756406921877,0.9149,4488.1,4488.0,1.1549]
[1756406922071,0.5384,4487.7,4487.3,5.58828571]
[1756406922271,0.9149,4487.4,4487.3,2.90529571]
[1756406922467,0.9149,4487.4,4487.3,1.1549]
[1756406922971,0.9149,4487.4,4487.3,0.3687]
[1756406923175,0.93949,4487.3,4487.2,32.099]
[1756406923380,0.93949,4487.3,4487.2,32.328]
[1756406923881,0.93949,4487.3,4485.9,2.77187031]
[1756406923882,0.9149,4486.3,4486.2,2.90529571]
[1756406924176,0.9149,4486.3,4486.2,0.5977]
[1756406926281,0.9149,4486.3,4486.2,0.229]
[1756406927482,0.9149,4486.3,4486.2,1.1549]
[1756406927778,3.2078,4486.7,4486.4,0.9259]
[1756406927975,3.2078,4486.7,4486.6,0.9259]
[1756406928176,3.5843,4486.7,4486.6,1.1549]
[1756406928475,4.1227,4486.7,4486.6,0.229]
[1756406928879,4.1227,4486.7,4486.6,0.5977]
[1756406929180,3.2078,4486.7,4486.6,5.1549]
[1756406929380,3.2078,4486.7,4486.6,1.1549]
[1756406929575,3.5843,4486.7,4486.6,1.1549]
[1756406929777,4.1227,4486.7,4486.6,0.229]
[1756406936280,1.31613,4485.8,4485.7,0.3687]
[1756406936487,0.93965,4485.6,4485.5,32.318]
[1756406938883,0.93965,4485.6,4485.5,0.229]
[1756406938884,1.31615,4485.6,4485.5,0.229]
[1756406942186,1.37718714,4485.6,4485.5,0.229]
[1756406942884,0.77784,4484.6,4484.5,0.9259]
[1756406943088,0.83887714,4484.6,4484.5,1.55624]
[1756406943588,0.06103714,4484.6,4484.5,1.55624]
[1756406944289,0.06103714,4484.6,4484.5,5.55624]
[1756406946489,0.06103714,4484.6,4484.5,5.1549]
[1756406946790,0.06103714,4484.6,4484.5,1.1549]
[1756406947281,1.36767714,4484.6,4484.5,0.3687]
[1756406947590,0.06103714,4484.6,4484.5,0.5715]
[1756406947791,0.06103714,4484.6,4484.5,4.5715]
[1756406948088,0.06103714,4484.6,4484.5,45.9037]
[1756406948283,3.2078,4485.4,4484.5,45.029]
[1756406948492,3.2078,4485.4,4485.3,0.8747]
[1756406948788,3.2078,4485.4,4485.3,1.1037]
[1756406949193,4.1131,4485.4,4485.3,0.229]
[1756406949585,4.1131,4485.4,4485.3,1.1037]
[1756406950290,4.1131,4485.4,4485.3,0.5715]
[1756406950487,4.1131,4485.4,4485.3,1.1037]
[1756406952186,3.2078,4485.4,4485.3,1.1037]
[1756406952888,0.5305,4485.9,4485.3,1.1037]
[1756406953082,0.5305,4485.9,4485.5,0.5322]
[1756406953083,0.40124,4485.7,4485.5,0.5322]
[1756406953287,0.9053,4485.6,4485.0,0.4013]
[1756406953485,0.3748,4485.2,4485.1,0.5715]
[1756406953686,0.9053,4485.2,4485.1,0.5715]
[1756406954293,0.9053,4485.2,4485.1,1.1037]
[1756406954687,0.3748,4485.2,4485.1,1.1037]
[1756406954888,4.1131,4486.0,4485.9,0.8747]
[1756406955089,4.1131,4486.0,4485.9,1.1037]
[1756406955290,4.51431,4486.0,4485.9,1.1037]
[1756406955495,4.51431,4486.0,4485.9,0.229]
[1756406956894,4.51431,4486.0,4485.9,0.63022]
[1756406957995,4.51431,4486.0,4485.9,0.229]
[1756406958798,4.51431,4486.0,4485.9,0.63022]
[1756406959092,0.3748,4485.5,4485.4,0.229]
[1756406959299,0.3748,4485.5,4484.4,0.3425]
[1756406959300,0.9053,4484.5,4484.4,0.3425]
[1756406959601,0.9053,4484.5,4484.4,0.229]
[1756406960297,0.3748,4484.2,4484.1,0.10258354]
[1756406960500,0.9053,4484.2,4484.1,0.67408354]
[1756406961289,0.9053,4484.2,4484.1,0.33158354]
[1756406961895,1.00346,4484.1,4483.2,0.5322]
[1756406962196,0.9053,4483.6,4483.5,0.8747]